Cogmind - Beta 13 @@@ ROGUE MODE // 2024.04.15 @ 18:53:42 Player: CeeJaaay Result: Destroyed by H-61 Shepherd with Heavy Assault Cannon Performance ------------- Evolutions (2) 1000 Regions Visited (4) 800 Robots Destroyed (68) 340 Value Destroyed (2024) 2024 Prototype IDs (1) 20 Alien Tech Used (0) 0 Bonus (-115) -115 TOTAL SCORE: 4069 Bonus ------- Friendly Fire -115 Cogmind --------- Core Integrity 0/550 Matter 300/300 Energy 67/100 System Corruption 0% Temperature Cool (0) Movement Core (50) Location -8/Materials Parts ------- > --- POWER (2) -------- (None) > --- PROPULSION (2) --- (None) > --- UTILITY (4) ------ Heat Sink > --- WEAPON (3) ------- Katana > --- INVENTORY (5) ---- Aluminum Leg Aluminum Leg Visual Processing Unit Particle Charger Particle Gun Peak State ------------ > --- POWER ------------ Light Deuterium Engine Light Nuclear Core > --- PROPULSION ------- Aluminum Leg Titanium Leg > --- UTILITY ---------- Improved Heat Sink Visual Processing Unit Advanced Visual Processing Unit Core Shielding > --- WEAPON ----------- Light Assault Rifle Enhanced Autogun Katana > --- INVENTORY -------- Aluminum Leg Visual Processing Unit Particle Charger Light Assault Rifle Light Assault Rifle [Rating: 27] Favorites ----------- Power Ion Engine Engine Ion Engine Power Core Light Nuclear Core Propulsion Aluminum Leg Leg Aluminum Leg Hover Unit Hover Unit Utility Visual Processing Unit Device Sensor Array Processor Visual Processing Unit Protection Core Shielding Weapon Light Assault Rifle Energy Gun Medium Laser Ballistic Gun Light Assault Rifle Slashing Weapon Katana Build | -11 -10 -9 -9 -8 ------- Run | Yrd Mat Mat Sto Mat Slots Evolved 4 | . . 2 . 2 Power 1 | . . . . 1 Propulsion . | . . . . . Utility 2 | . . 2 . . Weapon 1 | . . . . 1 Parts Attached 70 | 5 7 7 22 29 Power 14 | 1 1 2 3 7 Engine 11 | 1 1 2 3 4 Core 3 | . . . . 3 Reactor . | . . . . . Propulsion 18 | 2 2 2 6 6 Treads . | . . . . . Leg 14 | 2 2 2 2 6 Wheel . | . . . . . Hover 4 | . . . 4 . Flight . | . . . . . Utility 19 | . 3 1 8 7 Device 12 | . 2 . 6 4 Storage . | . . . . . Processor 6 | . 1 1 2 2 Hackware . | . . . . . Protection 1 | . . . . 1 Artifact . | . . . . . Weapon 19 | 2 1 2 5 9 Energy Gun 8 | 1 1 . 3 3 Energy Cannon . | . . . . . Ballistic Gun 10 | 1 . 2 2 5 Ballistic Cannon . | . . . . . Launcher . | . . . . . Special Weapon . | . . . . . Impact Weapon . | . . . . . Slashing Weapon 1 | . . . . 1 Piercing Weapon . | . . . . . Special Melee Weapon . | . . . . . Unidentified Prototypes 1 | . . . . 1 Parts Lost 31 | . 1 2 6 22 Power 7 | . . 1 1 5 Propulsion 6 | . . . 2 4 Utility 8 | . . . 2 6 Weapon 10 | . 1 1 1 7 Highest Loss Streak 7 | . 1 2 4 7 To Critical Strikes . | . . . . . Average Slot Usage (%) 91 | . 91 87 96 89 Engine 9 | . 14 10 10 5 Core 2 | . . . . 6 Leg 16 | . 28 22 9 16 Hover 4 | . . . 10 1 Device 15 | . 11 11 23 10 Processor 17 | . 8 22 19 17 Protection 2 | . . . . 6 Energy Gun 7 | . 13 4 9 4 Ballistic Gun 13 | . 14 17 11 13 Slashing Weapon 2 | . . . . 7 Naked Turns . | . . . . . Heaviest Build 24 | 6 7 12 24 21 Greatest Support 27 | 20 20 20 20 27 Greatest Overweight (x) 2 | . . . 2 1 Average Overweight (x) . | . . . . . Largest Inventory Capacity 5 | 5 5 5 5 5 Average Capacity 5 | 5 5 5 5 5 Most Carried 5 | 4 5 5 5 5 Average Carried 4 | 1 4 4 4 4 Final Capacity 5 | 5 5 5 5 5 Final Carried 5 | 2 5 5 5 5 Class Distribution -------------------- 45% | Scavenger-Mutant 32% | Scavenger-Skirmisher 16% | Mutant 4% | Scavenger-Scout Dominant Class ---------------- Mutant | -10/Materials Scavenger-Skirmisher | -9/Materials Scavenger-Skirmisher | -9/Storage Scavenger-Mutant | -8/Materials Resources | -11 -10 -9 -9 -8 ----------- Run | Yrd Mat Mat Sto Mat Matter Collected 1419 | 241 122 204 369 483 Remotely . | . . . . . Salvage Created 2391 | . 208 526 849 808 Parts 150 | . 24 32 57 37 Haulers Intercepted . | . . . . . Recyclers Shooed 1 | . 1 . . . Parts Field Recycled . | . . . . . Retrieved Matter . | . . . . . Parts Self-Destructed . | . . . . . Prevented . | . . . . . Kills | -11 -10 -9 -9 -8 ------- Run | Yrd Mat Mat Sto Mat Combat Hostiles Destroyed 59 | . 8 13 19 19 Melee 6 | . 1 . . 5 Guns 52 | . 7 13 18 14 Classes Destroyed 7 | . 3 1 2 1 Operator 2 | . . . 2 . Drone 1 | . . . 1 . Watcher 7 | . 2 1 2 2 Swarmer 18 | . 6 3 4 5 Grunt 28 | . 2 8 9 9 Duelist 1 | . . . . 1 Sentry 12 | . . 2 6 4 Best Kill Streak 6 | . 4 5 6 5 Combat Bots Only 6 | . 4 5 6 5 Max Kills in Single Turn 2 | . 1 1 2 1 Gunslinging 1 | . . . 1 . Exploded . | . . . . . Melee 1 | . 1 . . 1 Uniques/NPCs Destroyed . | . . . . . Combat | -11 -10 -9 -9 -8 -------- Run | Yrd Mat Mat Sto Mat Hostile Shots Fired 362 | . 41 60 100 161 Missed 67 | . 2 20 15 30 Damage Taken 4169 | . 363 486 1034 2286 Core 899 | . 71 128 143 557 Absorbed by Shields . | . . . . . Redirected to Shielding 44 | . . . . 44 Core Remaining (%) 67 | 100 71 . 32 . Volleys Fired 208 | . 34 37 58 79 Largest 3 | . 2 2 2 3 Hottest 130 | . 70 70 79 130 Shots Fired 375 | . 60 70 114 131 Gun 375 | . 60 70 114 131 Cannon . | . . . . . Launcher . | . . . . . Special . | . . . . . Kinetic 265 | . 34 63 73 95 Thermal 76 | . 13 7 20 36 Explosive . | . . . . . Electromagnetic 34 | . 13 . 21 . Robot Hit Streak 18 | . 11 12 17 18 Robot Miss Streak 5 | . 2 3 4 5 Penetration Max . | . . . . . Secondary Targets 7 | . 2 2 2 1 Max Gunslinging Chain 1 | . 1 1 1 1 Shots Hit Robots 285 | . 41 46 89 109 Core Hits 120 | . 19 21 38 42 Critical Kills 1 | . . 1 . . Critical Parts Destroyed 1 | . . 1 . . Critical Strikes 6 | . 1 2 3 . Burn 3 | . . . 3 . Destroy 2 | . . 2 . . Corrupt 1 | . 1 . . . Melee Attacks 23 | . . . . 23 Impact . | . . . . . Slashing 23 | . . . . 23 Piercing . | . . . . . Sneak Attacks . | . . . . . Combat Hostiles . | . . . . . Follow-up Attacks . | . . . . . Damage Inflicted 3931 | . 396 531 1291 1713 Guns 3428 | . 391 531 1291 1215 Cannons . | . . . . . Explosions . | . . . . . Melee 493 | . . . . 493 Ramming 10 | . 5 . . 5 Kinetic 2309 | . 191 482 767 869 Thermal 733 | . 76 49 262 346 Explosive . | . . . . . Electromagnetic 386 | . 124 . 262 . Impact . | . . . . . Slashing 493 | . . . . 493 Piercing . | . . . . . Highest Corruption 1 | . 1 . . . Average Corruption 1 | . 1 . . . Corruption Purged . | . . . . . Corruption Blocked . | . . . . . Effects 1 | . 1 . . . Matter Fused 1 | . 1 . . . Overload Shots . | . . . . . Overflow Damage 31 | . . . . 31 Projectiles . | . . . . . Explosions . | . . . . . Melee 31 | . . . . 31 Knockbacks . | . . . . . Impact . | . . . . . Kinetic . | . . . . . Secondary . | . . . . . Self-Inflicted Damage . | . . . . . Shots . | . . . . . Rammed . | . . . . . Targets Rammed 6 | . 2 1 2 1 Kicked 6 | . 2 1 2 1 Crushed . | . . . . . Highest Temperature 164 | . 72 47 146 164 Average Temperature 32 | . 22 11 47 28 Received Heat Transfer 1293 | . 66 174 450 603 Siege Activations . | . . . . . Robots Corrupted . | . . . . . Combat Hostiles . | . . . . . Parts Fried 6 | . 1 . 2 3 Impact Corruptions 1 | . . . . 1 Robots Melted 1 | . . . 1 . Combat Hostiles 1 | . . . 1 . Parts Melted 1 | . . . 1 . Heat Transferred 2087 | . 222 148 888 829 Parts Sabotaged . | . . . . . Parts Stolen . | . . . . . Parts Stripped . | . . . . . Power Chain Reactions . | . . . . . Alert | -11 -10 -9 -9 -8 ------- Run | Yrd Mat Mat Sto Mat Peak Influence 361 | . 132 320 361 272 Initial 92 | . . 38 92 81 Average 165 | . 82 159 233 139 Maximum Alert Level 1 | . . 1 1 1 Low Security (%) 61 | 100 100 54 28 82 Level 1 38 | . . 45 71 17 Level 2 . | . . . . . Level 3 . | . . . . . Level 4 . | . . . . . Level 5 . | . . . . . High Security . | . . . . . Max Security . | . . . . . Squads Dispatched 11 | . 1 1 6 3 Investigation 2 | . 1 . 1 . Extermination . | . . . . . Reinforcement 6 | . . 1 2 3 Assault . | . . . . . Garrison 3 | . . . 3 . Intercept . | . . . . . Searches Triggered . | . . . . . Construction Impeded . | . . . . . Haulers Reinforced . | . . . . . Active Scanning Responses . | . . . . . Cargo Convoy Interrupts . | . . . . . Stealth | -11 -10 -9 -9 -8 --------- Run | Yrd Mat Mat Sto Mat Distress Signals 6 | . . . 1 5 Communications Jammed . | . . . . . Distress Signals . | . . . . . Times Spotted 96 | . 12 16 30 38 Peak Tracking Total 8 | . 3 6 4 8 Tactical Retreats 5 | . . 1 1 3 Traps | -11 -10 -9 -9 -8 ------- Run | Yrd Mat Mat Sto Mat Traps Triggered 3 | . 2 . 1 . Indirectly . | . . . . . Trap Hack Attempts . | . . . . . Triggered . | . . . . . Disarmed . | . . . . . Reprogrammed . | . . . . . Reused . | . . . . . Traps Extracted . | . . . . . Installed . | . . . . . Triggered . | . . . . . Machines | -11 -10 -9 -9 -8 ---------- Run | Yrd Mat Mat Sto Mat Machines Disabled . | . . . . . Max in Single Turn . | . . . . . Machines Repaired . | . . . . . Machines Dismantled . | . . . . . Machines Sabotaged . | . . . . . Overloaded Fab Kills . | . . . . . Hacking | -11 -10 -9 -9 -8 --------- Run | Yrd Mat Mat Sto Mat Machines Accessed 6 | . . . 4 2 Terminals 5 | . . . 3 2 Fabricators . | . . . . . Repair Stations . | . . . . . Recycling Units . | . . . . . Scanalyzers . | . . . . . Garrison Access 1 | . . . 1 . Total Hacks 14 | . . . 9 5 Successful 5 | . . . 3 2 Failed 9 | . . . 6 3 Catastrophic 1 | . . . 1 . Database Lockouts . | . . . . . Manual . | . . . . . Terminals 11 | . . . 6 5 Fabricators . | . . . . . Repair Stations . | . . . . . Recycling Units . | . . . . . Scanalyzers . | . . . . . Garrison Access 3 | . . . 3 . Terminal Hacks 5 | . . . 3 2 Record 1 | . . . . 1 Open Door 2 | . . . 2 . Alert Level 1 | . . . . 1 Locate Traps 1 | . . . 1 . Fabricator Hacks . | . . . . . Repair Station Hacks . | . . . . . Recycling Unit Hacks . | . . . . . Scanalyzer . | . . . . . Garrison Access Hacks . | . . . . . Unauthorized Hacks . | . . . . . Terminals . | . . . . . Fabricators . | . . . . . Repair Stations . | . . . . . Recycling Units . | . . . . . Scanalyzers . | . . . . . Garrison Access . | . . . . . Data Cores Recovered 1 | . . . 1 . Used . | . . . . . Hacking Detections 5 | . . . 3 2 Full Trace Events 1 | . . . . 1 Feedback Events . | . . . . . Feedback Blocked . | . . . . . Robot Schematics Acquired . | . . . . . Robots Built . | . . . . . Authchips . | . . . . . Time . | . . . . . Total Robot Build Rating . | . . . . . Part Schematics Acquired . | . . . . . Parts Built . | . . . . . Authchips . | . . . . . Time . | . . . . . Total Part Build Rating . | . . . . . Parts Repaired . | . . . . . Time . | . . . . . Parts Recycled . | . . . . . Recycled Matter . | . . . . . Retrieved Matter . | . . . . . Retrieved Components . | . . . . . Parts Scanalyzed . | . . . . . Part Schematics Acquired . | . . . . . Parts Damaged . | . . . . . Bothacking | -11 -10 -9 -9 -8 ------------ Run | Yrd Mat Mat Sto Mat Used RIF Installer . | . . . . . Robots Hacked . | . . . . . Non-combat . | . . . . . Combat . | . . . . . Robot Hacks Applied . | . . . . . Relay Couplers Released . | . . . . . Fabnet Peak Effective % . | . . . . . Robots Rewired . | . . . . . Allies Hacked . | . . . . . Hacks Repelled . | . . . . . Allies | -11 -10 -9 -9 -8 -------- Run | Yrd Mat Mat Sto Mat Total Allies . | . . . . . Largest Group . | . . . . . Highest-Rated Group . | . . . . . Highest-Rated Ally . | . . . . . Total Orders . | . . . . . Ally Attacks . | . . . . . Total Damage . | . . . . . Kills . | . . . . . Allies Corrupted . | . . . . . Allies Melted . | . . . . . Intel | -11 -10 -9 -9 -8 ------- Run | Yrd Mat Mat Sto Mat Robot Analysis Total . | . . . . . Derelict Logs Recovered . | . . . . . Drone Launches 12 | . . . 10 2 Drone Recoveries 7 | . . . 5 2 Exploration | -11 -10 -9 -9 -8 ------------- Run | Yrd Mat Mat Sto Mat Turns Passed 3846 | 59 625 542 1424 1196 Spaces Moved 2287 | 49 417 291 915 615 Core 32 | 16 . . 15 1 Treads . | . . . . . Legs 1590 | 33 417 291 277 572 Wheels . | . . . . . Hover 665 | . . . 623 42 Flight . | . . . . . Fastest Speed 50 | 50 120 120 56 50 Average Speed 119 | 97 120 120 119 121 Slowest Speed 260 | 120 120 120 260 125 Overloaded Moves . | . . . . . Propulsion Burnouts . | . . . . . Robots Hopped . | . . . . . Cave-ins Triggered . | . . . . . Exploration Rate (%) 37 | 4 45 16 68 53 Regions Visited 4 Branch Regions 1 Pre-discovered Areas . | . . . . . Known Exits Taken 3 | . 1 1 1 . Unknown Exits Taken 1 | 1 . . . . Scrap Searched . | . . . . . Spaces Dug . | . . . . . Terrain Destroyed . | . . . . . Melee . | . . . . . Projectile . | . . . . . AOE . | . . . . . Terrain Rammed . | . . . . . Walls Destroyed . | . . . . . Machines Disabled . | . . . . . Actions | -11 -10 -9 -9 -8 --------- Run | Yrd Mat Mat Sto Mat Total 3040 | 60 488 429 1139 924 Wait 353 | . 16 78 114 145 Move 2283 | 48 416 290 914 615 Hop . | . . . . . Pick Up 54 | 7 9 9 12 17 Fast Attach 19 | . 1 . 8 10 Attach 30 | 5 3 5 5 12 Detach . | . . . . . Swap 21 | . 3 2 9 7 Drop 43 | . 4 7 17 15 Fire 208 | . 34 37 58 79 Melee 23 | . . . . 23 Ram . | . . . . . Kick 6 | . 2 1 2 1 Crush . | . . . . . Escape Stasis . | . . . . . Rewire . | . . . . . Trap . | . . . . . Miscellaneous . | . . . . . Route ------- -11/Scrapyard -10/Materials (discovered 2 exits: *Mat / *Min) -9/Materials -9/Storage -8/Materials (discovered 1 exit: [*Fac]) History --------- Turn | Location | Event 10 | -11/Scrapyard | Discovered new exit (range 16) 60 | -11/Scrapyard | Entered Materials 318 | -10/Materials | Discovered new exit (range 4) 329 | -10/Materials | Build established: Mutant 537 | -10/Materials | Discovered new exit (range 15) 554 | -10/Materials | Identified exit to Mines 684 | -10/Materials | Identified exit to Materials 685 | -10/Materials | Entered another Materials area 685 | -9/Materials | Evolved 2 slots: Utility x2 1206 | -9/Materials | Build established: Scavenger-Skirmisher 1222 | -9/Materials | Discovered new exit (range 4) 1226 | -9/Materials | Identified exit to Storage 1227 | -9/Materials | Entered Storage 1622 | -9/Storage | Build established: Scavenger-Mutant 1928 | -9/Storage | Core integrity fell below 50% 1950 | -9/Storage | Lost 4 parts (1p1n2u) 2641 | -9/Storage | Discovered new exit (range 8) 2649 | -9/Storage | Identified exit to Materials 2651 | -9/Storage | Entered Materials 2651 | -8/Materials | Accompanied by 3 allies 2651 | -8/Materials | Evolved 2 slots: Power x1, Weapon x1 2691 | -8/Materials | Build established: Scavenger-Skirmisher 2785 | -8/Materials | Lost 7 parts (2p2n2u1w) 3082 | -8/Materials | Core integrity fell below 50% 3191 | -8/Materials | Build established: Scavenger-Mutant 3716 | -8/Materials | Lost 5 parts (2p1u2w) 3760 | -8/Materials | Discovered new exit (range 19) 3824 | -8/Materials | Core integrity fell below 20% 3847 | -8/Materials | Destroyed by H-61 Shepherd with Heavy Assault Cannon Last Messages --------------- Dropped Imp. Heat Sink. Acquired 10 matter. Acquired 1 matter. Acquired Particle Gun. EXIT=FOUND Knocked back. Lgt. Nuclear Core destroyed. H-61 Shepherd calls for reinforcements. ALERT: Hostile activity reported, dispatching reinforcements to area. Knocked back. Visual Processing Unit destroyed. Critical hit (Blast). Titanium Leg destroyed. Adv. Visual Processing Unit destroyed. Critical hit (Blast). Imp. Heat Sink destroyed. Lgt. Assault Rifle destroyed. Aluminum Leg destroyed. Beam Rifle destroyed. Map ----- +----------------------------------------------------+ | | | | | | | | | | | | | | | | | | | | | | | | | | | | | | | | | | | | | ?????????????????????##############?????????#####? | | ?????????????????????# ########## # | | ?????????????????????# #?#! ## """ # | | ?????????????????????# #?# ## """ # | | ?????????????????????# """ """ #?# """ ## """ # | | ?????????????????????# """ """ #?# """ ## """ # | | ?????????????????????# """ """ #?#!!"""=## # | | ?????????????????????# @ %% #?#% %= !## # | | ???????????+#######T####;#;+###########+######+### | | ???????# H % | | ???????# < % | | ???????# | | ?????????## ###"+########+############### ###### | | ??????????????????????????????????????????# #?# | | ??????????????????????????????????????????# #?# " | | ??????????????????????????????????????????# #?#] " | | ??????????????????????????????????????????# #?# " | | ??????????????????????????????????????????# #?# | | ??????????????????????????????????????????# #?# [ | | ??????????????????????????????????????????# #?#### | | ??????????????????????????????????????????# #????? | | ??????????????????????????????????????????# #????? | | ??????????????????????????????????????????# #????? | | ??????????????????????????????????????????? ?????? | | ??????????????????????????????????????????? ?????? | | ??????????????????????????????????????????# ###### | | ??????????????????????????????????????????# # | | ??????????????????????????????????????????# #""" | | ??????????????????????????????????????????+ #"R | | ??????????????????????????????????????????# #""" | | ??????????????????????????????????????????# # | | ??????????????????????????????????????????# # """ | +----------------------------------------------------+ Best States ------------- Heat Dissipation 55 Energy Generation 23 Energy Capacity 400 Matter Stores 300 Matter Capacity 300 Sight Range 20 Robot Scan Range 14 Terrain Scan Density 10 Core Shielding 20 Evasion (%) 55 Item Schematics ----------------- None Robot Schematics ------------------ None Fabricated ------------ Nothing Alien Tech Used ----------------- None Achievements -------------- Backstab Challenges ------------ None Game ------ Seed ProtonStorageStreamer Manual? 0 Play Time 00:40:59 Cumulative 6.5 hours Start 2024.04.15 @ 18:15:04 End 2024.04.15 @ 18:53:42 Sessions 1 Manual Loads 0 Difficulty Rogue Special Mode None Game No. 9 Rogue 9 Adventurer 0 Explorer 0 Win Type - Total 0 Types 0/0/0/0/0/0/0/0/0 Lore% 10 Gallery% 13 Achievement% 9 Wizard Run 0 Options --------- Layout 2 ASCII 0 Keyboard 0 Movement Arrows Keybinds 0 Fullscreen 2 Font 24/Smallcaps Map View 50x44 Zoom Use 0% Tactical HUD 0 Map Filters NONE Filters NONE Steam 1 RUN: 8fcd80b9-3e49-4830-8493-0620473fb75d